fUST/lending_fUST_20250628
["ID","MTS","AMOUNT","RATE_DAILY","PERIOD"]
[368159466,1751041850462,-515.07,0.00020547,2]
[368159467,1751041850472,-460.0,0.00020547,2]
[368159468,1751041850481,-764.30271448,0.00020555,2]
[368159469,1751041850490,-954.23052523,0.00020568,2]
[368159470,1751041850499,-2642.44,0.000206,2]
[368159471,1751041850509,-22403.81607298,0.0002066,2]
[368159472,1751041850519,-214.91804724,0.00020721,2]
[368159473,1751041850528,-12562.41216491,0.00020721,2]
[368159474,1751041850538,-160.0,0.00020721,2]
[368159475,1751041850548,-230.26210603,0.00020721,2]
[368159476,1751041850558,-847.04181546,0.00020721,2]
[368159477,1751041850568,-160.0,0.00020721,2]
[368159478,1751041850577,-160.0,0.00020721,2]
[368159479,1751041850587,-160.0,0.00020721,2]
[368159480,1751041850597,-836.98798914,0.00020721,2]
[368159481,1751041850606,-160.0,0.00020721,2]
[368159482,1751041850616,-160.0,0.00020721,2]
[368159483,1751041850626,-160.0,0.00020721,2]
[368159484,1751041850635,-160.0,0.00020723,2]
[368159485,1751041850645,-213.75309343,0.00020723,2]
[368159486,1751041850655,-160.0,0.00020723,2]
[368159487,1751041850664,-7992.37635758,0.00020728,3]
[368159488,1751041850674,-1500.0,0.00020731,2]
[368159489,1751041850684,-2000.0,0.00020816,2]
[368159490,1751041850693,-460.0,0.00020821,2]
[368159491,1751041850702,-460.0,0.00020821,2]
[368159492,1751041850781,-202.3267382,0.00020821,2]
[368159493,1751041850796,-589.65,0.00020821,2]
[368159494,1751041850805,-684.79,0.00020821,2]
[368159495,1751041850814,-460.0,0.00020821,2]
[368159496,1751041850823,-555.16,0.00020821,2]
[368159497,1751041850833,-460.0,0.00020821,2]
[368159498,1751041850843,-460.0,0.00020821,2]
[368159499,1751041850852,-460.0,0.00020821,2]
[368159500,1751041850861,-460.0,0.00020821,2]
[368159501,1751041850871,-602.32,0.00020821,2]
[368159502,1751041850880,-325.03352708,0.00020821,2]
[368159503,1751041850889,-460.0,0.00020821,2]
[368159504,1751041850898,-476.01041788,0.00020821,2]
[368159505,1751041850908,-460.0,0.00020821,2]
[368159506,1751041850917,-460.0,0.00020821,2]
[368159507,1751041850927,-3458.57,0.00020821,2]
[368159508,1751041850937,-460.0,0.00020821,2]
[368159509,1751041850946,-460.0,0.00020821,2]
[368159510,1751041850956,-3599.12,0.00020821,2]
[368159511,1751041850965,-1165.57,0.00020821,2]
[368159512,1751041850974,-460.0,0.00020821,2]
[368159513,1751041850983,-489.27,0.00020821,2]
[368159514,1751041850993,-1581.79,0.00020821,2]
[368159515,1751041851002,-504.88,0.00020821,2]
[368159516,1751041851012,-460.0,0.00020821,2]
[368159517,1751041851021,-1032.13,0.00020821,2]
[368159518,1751041851031,-1913.21,0.00020821,2]
[368159519,1751041851041,-460.0,0.00020821,2]
[368159520,1751041851051,-1317.4,0.00020821,2]
[368159521,1751041851060,-1183.57,0.00020821,2]
[368159522,1751041851069,-460.0,0.00020821,2]
[368159523,1751041851080,-460.0,0.00020821,2]
[368159524,1751041851091,-791.9,0.00020821,2]
[368159525,1751041851100,-349.2238109,0.00020821,2]
[368159526,1751041851111,-171.06345392,0.00020821,2]
[368159527,1751041851120,-460.0,0.00020821,2]
[368159528,1751041851129,-460.0,0.00020821,2]
[368159529,1751041851139,-460.0,0.00020821,2]
[368159530,1751041851148,-460.0,0.00020821,2]
[368159531,1751041851158,-460.0,0.00020821,2]
[368159532,1751041851167,-460.0,0.00020821,2]
[368159533,1751041851181,-460.0,0.00020821,2]
[368159534,1751041851190,-316.6,0.00020821,2]
[368159535,1751041851200,-460.0,0.00020821,2]
[368159536,1751041851209,-665.4,0.00020821,2]
[368159537,1751041851219,-1541.92,0.00020821,2]
[368159538,1751041851228,-460.0,0.00020821,2]
[368159539,1751041851237,-460.0,0.00020821,2]
[368159540,1751041851247,-460.0,0.00020821,2]
[368159541,1751041851257,-639.55,0.00020821,2]
[368159542,1751041851266,-1016.08,0.00020821,2]
[368159543,1751041851276,-569.45,0.00020821,2]
[368159544,1751041851286,-460.0,0.00020821,2]
[368159545,1751041851295,-460.0,0.00020821,2]
[368159546,1751041851305,-460.0,0.00020821,2]
[368159547,1751041851314,-513.78,0.00020821,2]
[368159548,1751041851324,-740.53,0.00020821,2]
[368159549,1751041851334,-2643.49,0.00020821,2]
[368159550,1751041851342,-2202.94,0.00020821,2]
[368159551,1751041851351,-1346.61,0.00020821,2]
[368159552,1751041851360,-591.74,0.00020821,2]
[368159553,1751041851370,-460.0,0.00020821,2]
[368159554,1751041851379,-779.61,0.00020821,2]
[368159555,1751041851389,-903.53,0.00020821,2]
[368159556,1751041851398,-460.0,0.00020821,2]
[368159557,1751041851407,-460.0,0.00020821,2]
[368159558,1751041851417,-460.0,0.00020821,2]
[368159559,1751041851427,-1225.17,0.00020821,2]
[368159560,1751041851437,-460.0,0.00020821,2]
[368159561,1751041851446,-1020.01,0.00020821,2]
[368159562,1751041851455,-1647.02449813,0.00020821,2]
[368159563,1751041851643,-3902.56288792,0.00020821,2]
[368159564,1751041852080,-460.0,0.00019178,2]
[368159565,1751041852090,-460.0,0.00019178,2]
[368159566,1751041852102,-460.0,0.00019178,2]
[368159567,1751041852113,-460.0,0.00019178,2]
[368159568,1751041852122,-460.0,0.00019178,2]
[368159569,1751041852132,-460.0,0.00019178,2]
[368159570,1751041852142,-4135.14,0.00019452,2]
[368159571,1751041852152,-460.0,0.00019452,2]
[368159572,1751041852161,-460.0,0.00019452,2]
[368159573,1751041852172,-460.0,0.00019452,2]
[368159574,1751041852183,-4135.14,0.00019726,2]
[368159575,1751041852192,-448.2,0.00019726,2]
[368159576,1751041852202,-414.1944289,0.00019726,2]
[368159577,1751041852211,-4135.14,0.0002,2]
[368159578,1751041852222,-4135.14,0.00020273,2]
[368159579,1751041852231,-4135.14,0.00020547,2]
[368159580,1751041852240,-642.96261395,0.00020821,2]
[368159581,1751041852251,-460.0,0.00020821,2]
[368159582,1751041852260,-1268.68,0.00020821,2]
[368159583,1751041852269,-4324.61,0.00020821,2]
[368159584,1751041852279,-2137.7,0.00020821,2]
[368159585,1751041852288,-460.0,0.00020821,2]
[368159586,1751041852298,-460.0,0.00020821,2]
[368159587,1751041852308,-2831.97,0.00020821,2]
[368159588,1751041852317,-1234.66,0.00020821,2]
[368159589,1751041852328,-1701.89,0.00020821,2]
[368159590,1751041852338,-515.07,0.00020821,2]
[368159591,1751041852347,-460.0,0.00020821,2]
[368159592,1751041852356,-4135.14,0.00020821,2]
[368159593,1751041852366,-338.6824018,0.00020822,2]
[368159594,1751041852375,-500.0,0.00020844,2]
[368159595,1751041852384,-366.1147399,0.00020849,2]
[368159596,1751041852394,-151.0,0.000209,3]
[368159597,1751041852403,-366.1147399,0.00020932,2]
[368159598,1751041852412,-7992.37635758,0.00020934,4]
[368159599,1751041852422,-210.01914849,0.00020973,2]
[368159600,1751041852431,-494.99953402,0.00020973,2]
[368159601,1751041852440,-639.89679522,0.00020973,2]
[368159602,1751041852450,-500.0,0.00020973,2]
[368159603,1751041852459,-600.0,0.00020973,2]
[368159604,1751041852468,-500.0,0.00020973,2]
[368159605,1751041852477,-500.0,0.00020973,2]
[368159606,1751041852486,-500.0,0.00020973,2]
[368159607,1751041852495,-500.0,0.00020973,2]
[368159608,1751041852504,-9220.02772774,0.00020995,2]
[368159609,1751041852513,-100000.0,0.00021,2]
[368159610,1751041852522,-75027.40597346,0.00021,2]
[368159611,1751041852532,-460.0,0.00021095,2]
[368159612,1751041852541,-460.0,0.00021095,2]
[368159613,1751041852551,-589.65,0.00021095,2]
[368159614,1751041852560,-684.79,0.00021095,2]
[368159615,1751041852570,-460.0,0.00021095,2]
[368159616,1751041852579,-555.16,0.00021095,2]
[368159617,1751041852589,-460.0,0.00021095,2]
[368159618,1751041852598,-460.0,0.00021095,2]
[368159619,1751041852608,-460.0,0.00021095,2]
[368159620,1751041852617,-469.05162573,0.00021095,2]
[368159621,1751041852627,-602.32,0.00021095,2]
[368159622,1751041852636,-460.0,0.00021095,2]
[368159623,1751041852646,-460.0,0.00021095,2]
[368159624,1751041852655,-460.0,0.00021095,2]
[368159625,1751041852665,-3458.57,0.00021095,2]
[368159626,1751041852674,-460.0,0.00021095,2]
[368159627,1751041852684,-3599.12,0.00021095,2]
[368159628,1751041852693,-1165.57,0.00021095,2]
[368159629,1751041852702,-460.0,0.00021095,2]
[368159630,1751041852712,-489.27,0.00021095,2]
[368159631,1751041852721,-1581.79,0.00021095,2]
[368159632,1751041852730,-504.88,0.00021095,2]
[368159633,1751041852740,-1032.13,0.00021095,2]
[368159634,1751041852749,-1913.21,0.00021095,2]
[368159635,1751041852758,-460.0,0.00021095,2]
[368159636,1751041852768,-1317.4,0.00021095,2]
[368159637,1751041852778,-1183.57,0.00021095,2]
[368159638,1751041852787,-460.0,0.00021095,2]
[368159639,1751041852796,-460.0,0.00021095,2]
[368159640,1751041852806,-791.9,0.00021095,2]
[368159641,1751041852815,-460.0,0.00021095,2]
[368159642,1751041852825,-460.0,0.00021095,2]
[368159643,1751041852835,-460.0,0.00021095,2]
[368159644,1751041852844,-460.0,0.00021095,2]
[368159645,1751041852853,-460.0,0.00021095,2]
[368159646,1751041852863,-460.0,0.00021095,2]
[368159647,1751041852872,-460.0,0.00021095,2]
[368159648,1751041852881,-460.0,0.00021095,2]
[368159649,1751041852890,-665.4,0.00021095,2]
[368159650,1751041852899,-1541.92,0.00021095,2]
[368159651,1751041852908,-460.0,0.00021095,2]
[368159652,1751041852917,-460.0,0.00021095,2]
[368159653,1751041852928,-460.0,0.00021095,2]
[368159654,1751041852937,-639.55,0.00021095,2]
[368159655,1751041852946,-1016.08,0.00021095,2]
[368159656,1751041852956,-569.45,0.00021095,2]
[368159657,1751041852965,-460.0,0.00021095,2]
[368159658,1751041853046,-460.0,0.00021095,2]
[368159659,1751041853056,-513.78,0.00021095,2]
[368159660,1751041853065,-460.0,0.00021095,2]
[368159661,1751041853075,-740.53,0.00021095,2]
[368159662,1751041853085,-2643.49,0.00021095,2]
[368159663,1751041853095,-2202.94,0.00021095,2]
[368159664,1751041853103,-591.74,0.00021095,2]
[368159665,1751041853113,-1346.61,0.00021095,2]
[368159666,1751041853123,-460.0,0.00021095,2]
[368159667,1751041853133,-779.61,0.00021095,2]
[368159668,1751041853142,-903.53,0.00021095,2]
[368159669,1751041853152,-460.0,0.00021095,2]
[368159670,1751041853162,-460.0,0.00021095,2]
[368159671,1751041853174,-460.0,0.00021095,2]
[368159672,1751041853184,-1225.17,0.00021095,2]
[368159673,1751041853193,-460.0,0.00021095,2]
[368159674,1751041853203,-1020.01,0.00021095,2]
[368159675,1751041853212,-6192.55,0.00021095,2]
[368159676,1751041853222,-460.0,0.00021095,2]
[368159677,1751041853231,-1268.68,0.00021095,2]
[368159678,1751041853241,-4324.61,0.00021095,2]
[368159679,1751041853251,-2137.7,0.00021095,2]
[368159680,1751041853261,-460.0,0.00021095,2]
[368159681,1751041853271,-460.0,0.00021095,2]
[368159682,1751041853280,-2831.97,0.00021095,2]
[368159683,1751041853289,-1234.66,0.00021095,2]
[368159684,1751041853298,-1701.89,0.00021095,2]
[368159685,1751041853307,-515.07,0.00021095,2]
[368159686,1751041853317,-460.0,0.00021095,2]
[368159687,1751041853326,-4135.14,0.00021095,2]
[368159688,1751041853336,-7992.37635758,0.00021141,4]
[368159689,1751041853345,-151.0,0.000212,4]
[368159690,1751041853355,-893.77226076,0.00021279,2]
[368159691,1751041853364,-1027.067,0.00021286,2]
[368159692,1751041853373,-7992.37635758,0.00021348,5]
[368159693,1751041853382,-2393.0,0.00021357,2]
[368159694,1751041853392,-500.0,0.0002136,2]
[368159695,1751041853401,-583.896093,0.0002136,2]
[368159696,1751041853411,-362.11921019,0.0002136,2]
[368159697,1751041853420,-500.0,0.0002136,2]
[368159698,1751041853429,-2500.0,0.00021364,2]
[368159699,1751041853439,-460.0,0.00021369,2]
[368159700,1751041853450,-460.0,0.00021369,2]
[368159701,1751041853460,-589.65,0.00021369,2]
[368159702,1751041853470,-684.79,0.00021369,2]
[368159703,1751041853479,-460.0,0.00021369,2]
[368159704,1751041853488,-555.16,0.00021369,2]
[368159705,1751041853497,-467.95481296,0.00021369,2]
[368159706,1751041853508,-460.0,0.00021369,2]
[368159707,1751041853518,-460.0,0.00021369,2]
[368159708,1751041853528,-602.32,0.00021369,2]
[368159709,1751041853538,-460.0,0.00021369,2]
[368159710,1751041853548,-460.0,0.00021369,2]
[368159711,1751041853557,-460.0,0.00021369,2]
[368159712,1751041853578,-3458.57,0.00021369,2]
[368159713,1751041853596,-460.0,0.00021369,2]
[368159714,1751041853617,-3599.12,0.00021369,2]
[368159715,1751041853639,-1165.57,0.00021369,2]
[368159716,1751041853658,-460.0,0.00021369,2]
[368159717,1751041853676,-489.27,0.00021369,2]
[368159718,1751041853694,-1581.79,0.00021369,2]
[368159719,1751041853709,-504.88,0.00021369,2]
[368159720,1751041853728,-1032.13,0.00021369,2]
[368159721,1751041853748,-1913.21,0.00021369,2]
[368159722,1751041853764,-460.0,0.00021369,2]
[368159723,1751041853780,-1317.4,0.00021369,2]
[368159724,1751041853800,-1183.57,0.00021369,2]
[368159725,1751041853818,-460.0,0.00021369,2]
[368159726,1751041853832,-460.0,0.00021369,2]
[368159727,1751041853847,-791.9,0.00021369,2]
[368159728,1751041853863,-460.0,0.00021369,2]
[368159729,1751041853878,-460.0,0.00021369,2]
[368159730,1751041853893,-460.0,0.00021369,2]
[368159731,1751041853908,-460.0,0.00021369,2]
[368159732,1751041853923,-289.67,0.00021369,2]
[368159733,1751041853938,-460.0,0.00021369,2]
[368159734,1751041853953,-460.0,0.00021369,2]
[368159735,1751041853969,-460.0,0.00021369,2]
[368159736,1751041853983,-665.4,0.00021369,2]
[368159737,1751041853999,-1541.92,0.00021369,2]
[368159738,1751041854014,-460.0,0.00021369,2]
[368159739,1751041854029,-460.0,0.00021369,2]
[368159740,1751041854039,-311.31,0.00021369,2]
[368159741,1751041854048,-639.55,0.00021369,2]
[368159742,1751041854058,-1016.08,0.00021369,2]
[368159743,1751041854068,-569.45,0.00021369,2]
[368159744,1751041854078,-460.0,0.00021369,2]
[368159745,1751041854088,-460.0,0.00021369,2]
[368159746,1751041854098,-513.78,0.00021369,2]
[368159747,1751041854107,-460.0,0.00021369,2]
[368159748,1751041854117,-740.53,0.00021369,2]
[368159749,1751041854127,-2643.49,0.00021369,2]
[368159750,1751041854136,-2202.94,0.00021369,2]
[368159751,1751041854146,-591.74,0.00021369,2]
[368159752,1751041854155,-1346.61,0.00021369,2]
[368159753,1751041854166,-460.0,0.00021369,2]
[368159754,1751041854179,-779.61,0.00021369,2]
[368159755,1751041854189,-903.53,0.00021369,2]
[368159756,1751041854199,-443.01,0.00021369,2]
[368159757,1751041854208,-219.10230457,0.00021369,2]
[368159758,1751041854219,-460.0,0.00021369,2]
[368159759,1751041854228,-1225.17,0.00021369,2]
[368159760,1751041854238,-460.0,0.00021369,2]
[368159761,1751041854249,-1020.01,0.00021369,2]
[368159762,1751041854260,-6192.55,0.00021369,2]
[368159763,1751041854270,-460.0,0.00021369,2]
[368159764,1751041854418,-1268.68,0.00021369,2]
[368159765,1751041854498,-4324.61,0.00021369,2]
[368159766,1751041854510,-2137.7,0.00021369,2]
[368159767,1751041854519,-460.0,0.00021369,2]
[368159768,1751041854528,-460.0,0.00021369,2]
[368159769,1751041854538,-2831.97,0.00021369,2]
[368159770,1751041854547,-1234.66,0.00021369,2]
[368159771,1751041854556,-1701.89,0.00021369,2]
[368159772,1751041854566,-515.07,0.00021369,2]
[368159773,1751041854575,-460.0,0.00021369,2]
[368159774,1751041854585,-4135.14,0.00021369,2]
[368159775,1751041854595,-404.33991464,0.000214,2]
[368159776,1751041854605,-306.74033047,0.000214,2]
[368159777,1751041854614,-500.0,0.000214,2]
[368159778,1751041854624,-500.0,0.000214,2]
[368159779,1751041854634,-500.0,0.000214,2]
[368159780,1751041854643,-164.132208,0.00021404,2]
[368159781,1751041854654,-912.75464604,0.00021521,2]
[368159782,1751041854663,-1000.0,0.00021521,2]
[368159783,1751041854672,-1000.0,0.00021521,2]
[368159784,1751041854683,-1200.0,0.00021521,2]
[368159785,1751041854693,-1000.0,0.00021521,2]
[368159786,1751041854702,-1000.0,0.00021521,2]
[368159787,1751041854713,-9220.02772773,0.00021536,2]
[368159788,1751041854722,-7992.37635758,0.00021555,5]
[368159789,1751041854731,-151.0,0.000216,4]
[368159790,1751041854741,-460.0,0.00021643,2]
[368159791,1751041854750,-460.0,0.00021643,2]
[368159792,1751041854760,-589.65,0.00021643,2]
[368159793,1751041854769,-684.79,0.00021643,2]
[368159794,1751041854779,-355.21,0.00021643,2]
[368159795,1751041854788,-555.16,0.00021643,2]
[368159796,1751041854798,-460.0,0.00021643,2]
[368159797,1751041854807,-460.0,0.00021643,2]
[368159798,1751041854817,-602.32,0.00021643,2]
[368159799,1751041854826,-460.0,0.00021643,2]
[368159800,1751041854835,-460.0,0.00021643,2]
[368159801,1751041854845,-460.0,0.00021643,2]
[368159802,1751041854854,-3458.57,0.00021643,2]
[368159803,1751041854863,-460.0,0.00021643,2]
[368159804,1751041854873,-3599.12,0.00021643,2]
[368159805,1751041854882,-1165.57,0.00021643,2]
[368159806,1751041854891,-280.39,0.00021643,2]
[368159807,1751041854901,-489.27,0.00021643,2]
[368159808,1751041854910,-1581.79,0.00021643,2]
[368159809,1751041854920,-504.88,0.00021643,2]
[368159810,1751041854929,-1032.13,0.00021643,2]
[368159811,1751041854938,-1913.21,0.00021643,2]
[368159812,1751041854948,-325.73580772,0.00021643,2]
[368159813,1751041854957,-1317.4,0.00021643,2]
[368159814,1751041854966,-1183.57,0.00021643,2]
[368159815,1751041854976,-460.0,0.00021643,2]
[368159816,1751041854986,-460.0,0.00021643,2]
[368159817,1751041854996,-791.9,0.00021643,2]
[368159818,1751041855005,-460.0,0.00021643,2]
[368159819,1751041855014,-460.0,0.00021643,2]
[368159820,1751041855024,-460.0,0.00021643,2]
[368159821,1751041855033,-460.0,0.00021643,2]
[368159822,1751041855043,-460.0,0.00021643,2]
[368159823,1751041855052,-460.0,0.00021643,2]
[368159824,1751041855062,-495.31939977,0.00021643,2]
[368159825,1751041855071,-665.4,0.00021643,2]
[368159826,1751041855081,-1541.92,0.00021643,2]
[368159827,1751041855090,-460.0,0.00021643,2]
[368159828,1751041855099,-639.55,0.00021643,2]
[368159829,1751041855111,-1016.08,0.00021643,2]
[368159830,1751041855122,-569.45,0.00021643,2]
[368159831,1751041855133,-151.0,0.00021643,2]
[368159832,1751041855142,-460.0,0.00021643,2]
[368159833,1751041855152,-460.0,0.00021643,2]
[368159834,1751041855162,-513.78,0.00021643,2]
[368159835,1751041855171,-460.0,0.00021643,2]
[368159836,1751041855182,-740.53,0.00021643,2]
[368159837,1751041855191,-2643.49,0.00021643,2]
[368159838,1751041855201,-2202.94,0.00021643,2]
[368159839,1751041855210,-151.0,0.00021643,2]
[368159840,1751041855221,-591.74,0.00021643,2]
[368159841,1751041855230,-1346.61,0.00021643,2]
[368159842,1751041855239,-460.0,0.00021643,2]
[368159843,1751041855251,-779.61,0.00021643,2]
[368159844,1751041855260,-903.53,0.00021643,2]
[368159845,1751041855270,-460.0,0.00021643,2]
[368159846,1751041855279,-1225.17,0.00021643,2]
[368159847,1751041855288,-152.213498,0.00021643,2]
[368159848,1751041855297,-342.03887525,0.00021643,2]
[368159849,1751041855307,-1020.01,0.00021643,2]
[368159850,1751041855316,-6192.55,0.00021643,2]
[368159851,1751041855325,-460.0,0.00021643,2]
[368159852,1751041855335,-1268.68,0.00021643,2]
[368159853,1751041855345,-4324.61,0.00021643,2]
[368159854,1751041855355,-151.0,0.00021643,2]
[368159855,1751041855364,-2137.7,0.00021643,2]
[368159856,1751041855374,-460.0,0.00021643,2]
[368159857,1751041855383,-460.0,0.00021643,2]
[368159858,1751041855392,-2831.97,0.00021643,2]
[368159859,1751041855402,-151.0,0.00021643,2]
[368159860,1751041855411,-1234.66,0.00021643,2]
[368159861,1751041855420,-151.0,0.00021643,2]
[368159862,1751041855430,-1701.89,0.00021643,2]
[368159863,1751041855441,-515.07,0.00021643,2]
[368159864,1751041855450,-460.0,0.00021643,2]
[368159865,1751041855459,-4135.14,0.00021643,2]
[368159866,1751041855469,-10529.43924731,0.00021698,2]
[368159867,1751041855479,-159.1939926,0.00021699,2]
[368159868,1751041855488,-7992.37635758,0.00021762,5]
[368159869,1751041855497,-381.0,0.00021772,2]
[368159870,1751041855506,-2393.0,0.00021782,2]
[368159871,1751041855515,-2393.0,0.00021796,2]
[368159872,1751041855525,-2393.0,0.00021867,2]
[368159873,1751041855534,-2026.79504,0.00021899,2]
[368159874,1751041855544,-2642.44,0.000219,2]
[368159875,1751041855553,-1000.0,0.00021908,2]
[368159876,1751041855563,-12500.0,0.00021908,2]
[368159877,1751041855573,-460.0,0.00021917,2]
[368159878,1751041855582,-731.76911251,0.00021917,2]
[368159879,1751041855591,-460.0,0.00021917,2]
[368159880,1751041855601,-589.65,0.00021917,2]
[368159881,1751041855611,-684.79,0.00021917,2]
[368159882,1751041855620,-555.16,0.00021917,2]
[368159883,1751041855630,-460.0,0.00021917,2]
[368159884,1751041855639,-460.0,0.00021917,2]
[368159885,1751041855649,-602.32,0.00021917,2]
[368159886,1751041855658,-12500.0,0.00021917,2]
[368159887,1751041855668,-151.093005,0.00021917,2]
[368159888,1751041855677,-460.0,0.00021917,2]
[368159889,1751041855688,-460.0,0.00021917,2]
[368159890,1751041855698,-460.0,0.00021917,2]
[368159891,1751041855706,-151.0,0.00021917,2]
[368159892,1751041855716,-151.0,0.00021917,2]
[368159893,1751041855726,-3458.57,0.00021917,2]
[368159894,1751041855735,-460.0,0.00021917,2]
[368159895,1751041855746,-3599.12,0.00021917,2]
[368159896,1751041855755,-1165.57,0.00021917,2]
[368159897,1751041855765,-489.27,0.00021917,2]
[368159898,1751041855775,-151.0,0.00021917,2]
[368159899,1751041855784,-1581.79,0.00021917,2]
[368159900,1751041855793,-504.88,0.00021917,2]
[368159901,1751041855803,-1032.13,0.00021917,2]
[368159902,1751041855812,-1913.21,0.00021917,2]
[368159903,1751041855822,-1317.4,0.00021917,2]
[368159904,1751041855833,-1183.57,0.00021917,2]
[368159905,1751041855843,-460.0,0.00021917,2]
[368159906,1751041855852,-460.0,0.00021917,2]
[368159907,1751041855861,-791.9,0.00021917,2]
[368159908,1751041855871,-460.0,0.00021917,2]
[368159909,1751041855880,-460.0,0.00021917,2]
[368159910,1751041855889,-151.0,0.00021917,2]
[368159911,1751041855899,-460.0,0.00021917,2]
[368159912,1751041855908,-460.0,0.00021917,2]
[368159913,1751041855918,-460.0,0.00021917,2]
[368159914,1751041855928,-460.0,0.00021917,2]
[368159915,1751041855938,-665.4,0.00021917,2]
[368159916,1751041855948,-1541.92,0.00021917,2]
[368159917,1751041855958,-534.845085,0.00021917,2]
[368159918,1751041855967,-460.0,0.00021917,2]
[368159919,1751041855977,-534.845085,0.00021917,2]
[368159920,1751041855987,-340.176013,0.00021917,2]
[368159921,1751041855996,-340.176013,0.00021917,2]
[368159922,1751041856006,-639.55,0.00021917,2]
[368159923,1751041856015,-1016.08,0.00021917,2]
[368159924,1751041856024,-569.45,0.00021917,2]
[368159925,1751041856034,-460.0,0.00021917,2]
[368159926,1751041856044,-460.0,0.00021917,2]
[368159927,1751041856053,-513.78,0.00021917,2]
[368159928,1751041856063,-790.581868,0.00021917,2]
[368159929,1751041856073,-460.0,0.00021917,2]
[368159930,1751041856082,-166.9756,0.00021917,2]
[368159931,1751041856092,-790.581868,0.00021917,2]
[368159932,1751041856101,-740.53,0.00021917,2]
[368159933,1751041856111,-166.9756,0.00021917,2]
[368159934,1751041856120,-2643.49,0.00021917,2]
[368159935,1751041856130,-2202.94,0.00021917,2]
[368159936,1751041856139,-591.74,0.00021917,2]
[368159937,1751041856148,-1346.61,0.00021917,2]
[368159938,1751041856158,-151.0,0.00021917,2]
[368159939,1751041856167,-460.0,0.00021917,2]
[368159940,1751041856180,-779.61,0.00021917,2]
[368159941,1751041856190,-903.53,0.00021917,2]
[368159942,1751041856201,-460.0,0.00021917,2]
[368159943,1751041856210,-1225.17,0.00021917,2]
[368159944,1751041856221,-1020.01,0.00021917,2]
[368159945,1751041856231,-6192.55,0.00021917,2]
[368159946,1751041856241,-460.0,0.00021917,2]
[368159947,1751041856253,-1268.68,0.00021917,2]
[368159948,1751041856263,-4324.61,0.00021917,2]
[368159949,1751041856273,-2137.7,0.00021917,2]
[368159950,1751041856282,-460.0,0.00021917,2]
[368159951,1751041856292,-460.0,0.00021917,2]
[368159952,1751041856301,-859.720302,0.00021917,2]
[368159953,1751041856311,-2831.97,0.00021917,2]
[368159954,1751041856321,-859.720302,0.00021917,2]
[368159955,1751041856331,-1234.66,0.00021917,2]
[368159956,1751041856340,-1701.89,0.00021917,2]
[368159957,1751041856350,-515.07,0.00021917,2]
[368159958,1751041856359,-460.0,0.00021917,2]
[368159959,1751041856369,-4135.14,0.00021917,2]
[368159960,1751041856379,-403.0,0.00021944,2]
[368159961,1751041856390,-608.605965,0.00021948,2]
[368159962,1751041856402,-1030.41482671,0.00021948,2]
[368159963,1751041856413,-567.61125249,0.00021948,2]
[368159964,1751041856423,-7992.37635758,0.00021969,6]
[368159965,1751041856433,-500.0,0.00021973,2]